{"text_format":"3","workbook":"xlsx","n_sheets":1,"sheets":["Unit_Price_Tab"],"not_rendered":{"external_links":3,"defined_names":8},"read":"whole","date_system":"1900"}

{"sheet":"Unit_Price_Tab","index":0,"n_rows":107,"n_cols":6,"rows_kept":107,"merged":[[1,0,1,5],[2,4,2,5],[43,1,43,2],[49,1,49,2]]}
[]
["THE UNDERSIGNED CERTIFIES THAT (CONTRACTOR NAME)___________________________\nIS CURRENTLY REGISTERED WITH THE VIRGINIA STATE BOARD OF CONTRACTORS AS REQUIRED BY THE CODE OF VIRGINIA.  CERTIFICATE NUMBER _________________ WAS ISSUED ON THE ________DAY OF _____________, 20XX.  THE UNDERSIGNED FURTHER CERTIFIES THAT THE REGISTRATION FEE AND ALL RENEWAL FEES REQUIRED UNDER LAW HAVE BEEN PAID.  THE CONTRACTOR AGREES TO FURNISH ALL NECESSARY LABOR, EQUIPMENT, MATERIALS, AND ALL THINGS NECESSARY TO PERFORM THE WORK AS SET FORTH IN ACCORDANCE WITH THE PLANS AND SPECIFICATIONS. THE CONTRACTOR AGREES TO PERFORM RELATED WORK FOR THE FOLLOWING ITEMS AT THE FOLLOWING STIPULATED PRICES: (ALL PRICES INCLUDE PROVISION AND INSTALLATION)."]
[]
[]
["MASTER ITEM #","DESCRIPTION","QTY","UNIT","UNIT PRICE","TOTAL"]
["C1","GENERAL EARTH WORK"]
["MASTER ITEM #","DESCRIPTION","QTY","UNIT","UNIT PRICE","TOTAL"]
["02200-C1-00140","Aggregate, VDOT #21-B  (Compacted in Place per VDOT standards & Specs)",58,"CY",null,{"$f":"+C8*E8","v":{"v":0,"d":"$0.00"}}]
[{"$nulls":4},"SUBTOTAL",{"$f":"+F8","v":{"v":0,"d":"$0.00"}}]
[]
["C2","CONCRETE WORK"]
["MASTER ITEM #","DESCRIPTION","QTY","UNIT","UNIT PRICE","TOTAL"]
["02750-C2-00060","Concrete Curb & Gutter, Standard C-2 and C-2R (Arlington County Detail R-2.0), includes curb & gutter for aprons, ramps, etc.",{"$f":"76+126","v":202},"LF",null,{"$f":"+C13*E13","v":{"v":0,"d":"$0.00"}}]
["02611-C2-00110","Concrete Sidewalk, 4\" Thickness (As per details shown on sheet C040.1)",110,"SY",null,{"$f":"+C14*E14","v":{"v":0,"d":"$0.00"}}]
["02611-C2-XXXX","Brick Bands",20,"LF",null,{"v":0,"d":"$0.00"}]
[{"$nulls":4},"SUBTOTAL",{"$f":"+SUM(F13:F15)","v":{"v":0,"d":"$0.00"}}]
[]
["C3","ASPHALT WORK"]
["MASTER ITEM #","DESCRIPTION","QTY","UNIT","UNIT\nPRICE","TOTAL"]
["02600-C3-00010","Asphalt Concrete, Planing or Milling (1/2\" to 3\" Depth)",87,"SY",null,{"$f":"+E20*C20","v":{"v":0,"d":"$0.00"}}]
["02600-C3-00030","Asphalt Concrete, Base Course (VDOT BM-25.0A)",29,"TON",null,{"$f":"+E21*C21","v":{"v":0,"d":"$0.00"}}]
["02600-C3-00040","Asphalt Concrete, Intermediate Course (VDOT IM-19.0A)",19,"TON",null,{"v":0,"d":"$0.00"}]
["02600-C3-00070","Asphalt Concrete, Surface Course (VDOT SM-9.5D)",20,"TON",null,{"v":0,"d":"$0.00"}]
[{"$nulls":4},"SUBTOTAL",{"$f":"+SUM(F20:F23)","v":{"v":0,"d":"$0.00"}}]
[]
["C9","STREET LIGHTING WORK"]
["MASTER ITEM #","DESCRIPTION","QTY","UNIT","UNIT\nPRICE","TOTAL"]
["14030-C9-00040","Furnish and Install 2 Inch Sch 40 PVC Conduit in Trench (Detail 14030-01)",358,"LF",null,{"$f":"+C28*E28","v":{"v":0,"d":"$0.00"}}]
["14040-C9-00180","Furnish and Install Junction Box and Lid LARGE (Detail 14040-02)",1,"EA",null,{"$f":"+C29*E29","v":{"v":0,"d":"$0.00"}}]
["14050-C9-00260","Furnish & Install # 6 TNNH Copper Cable",2048,"LF",null,{"v":0,"d":"$0.00"}]
["14050-C9-00270","Furnish & Install # 12 UF Cable with ground wire",240,"LF",null,{"v":0,"d":"$0.00"}]
["14060-C9-00300","Install Roadway Light Pole Foundation (Detail 14060-03)",2,"EA",null,{"v":0,"d":"$0.00"}]
["14160-C9-00920","Decorative Post-Top Aluminum Streetlight Pole with Double Post Top Luminaires per Arlington Lighting Standard 14160-02",4,"EA",null,{"v":0,"d":"$0.00"}]
["XXXXX-C9-XXXXX","Install Roadway Light Pole On Bridge Deck",2,"EA",null,{"v":0,"d":"$0.00"}]
[{"$nulls":4},"SUBTOTAL",{"$f":"+SUM(F28:F34)","v":{"v":0,"d":"$0.00"}}]
[]
["C10","PAVEMENT MARKING AND SIGNAGE WORK"]
["MASTER ITEM #","DESCRIPTION","QTY","UNIT","UNIT\nPRICE","TOTAL"]
["02900-C10-00070","Yellow Four (4) Inch Longitudinal Solid Line",850,"LF",null,{"$f":"+C39*E39","v":{"v":0,"d":"$0.00"}}]
["02900-C10-00080","White Four (4) Inch Longitudinal Skip Line (Ten (10) Foot Line/Thirty (30) Foot Spacing), Note: Forty (40) LF Consists of Ten (10) LF of Marking and Thirty (30) LF of Space",600,"LF",null,{"v":0,"d":"$0.00"}]
["02900-C10-00360","Removal of Existing Longitudinal Lines (Up To and Including Six (6) Inch Width), Note: Base Unit For Removal",400,"LF",null,{"v":0,"d":"$0.00"}]
[{"$nulls":4},"SUBTOTAL",{"$f":"+SUM(F39:F41)","v":{"v":0,"d":"$0.00"}}]
[]
["C11","LANDSCAPE AND HARDSCAPE RESTORATION WORK"]
["MASTER ITEM #","DESCRIPTION","QTY","UNIT","UNIT\nPRICE","TOTAL"]
["02200-C11-00010","Imported Topsoil",1,"CY",null,{"$f":"+C46*E46","v":{"v":0,"d":"$0.00"}}]
["02801-C11-00060","Sod, Tall Fescue/Bluegrass Mixture",9,"SY",null,{"v":0,"d":"$0.00"}]
[{"$nulls":4},"SUBTOTAL",{"$f":"+SUM(F46:F47)","v":{"v":0,"d":"$0.00"}}]
[]
["C13","EROSION AND SEDIMENT CONTROL WORK"]
["MASTER ITEM #","DESCRIPTION","QTY","UNIT","UNIT\nPRICE","TOTAL"]
["01500-C13-10000","Temporary Erosion and Sediment Controls",1,"LS",null,{"$f":"+C52*E52","v":{"v":0,"d":"$0.00"}}]
[{"$nulls":4},"SUBTOTAL",{"$f":"+SUM(F52:F52)","v":{"v":0,"d":"$0.00"}}]
[]
["C19","BRIDGE ITEMS"]
[null,"Base Bid Columbia Pike Street Improvements"]
["MASTER ITEM #","DESCRIPTION","QTY","UNIT","UNIT\nPRICE","TOTAL"]
["VDOT20-C19-SP001","Remove Portion of Existing Structure (Str. No. 1008) (VDOT Item 68900) See Bridge General Note #10 on Sheet C000.1",1,"LS",null,{"$f":"+C58*E58","v":{"v":0,"d":"$0.00"}}]
["VDOT20-C19-SP002","Remove and Dispose Existing Split Rail Fence",1,"LS",null,{"$f":"+C59*E59","v":{"v":0,"d":"$0.00"}}]
["VDOT20-C19-SP003","Deck Drainage System",1,"LS",null,{"v":0,"d":"$0.00"}]
["VDOT20-C19-SP004","4\" Diameter PVC Pipe (Drain Pipe Extension as needed)",50,"LF",null,{"v":0,"d":"$0.00"}]
["VDOT20-C19-SP005","Dry Riprap Cl. I, 26\" (VDOT item 69627)",17,"TON",null,{"v":0,"d":"$0.00"}]
["VDOT20-C19-SP006","Modify Existing Inlet",2,"EA",null,{"v":0,"d":"$0.00"}]
["VDOT20-C19-SP007","Handrail HR-1 Type II",212,"LF",null,{"v":0,"d":"$0.00"}]
["VDOT20-C19-SP008","Conc. Class A4 Mod. Low Shrinkage (VDOT Item 68043)",27.5,"CY",null,{"$f":"+C65*E65","v":{"v":0,"d":"$0.00"}}]
["VDOT20-C19-SP009","Corrosion Resistant Reinforcing Steel, Cl. I (VDOT Item 68091)",{"v":1250,"d":"1,250"},"LBS",null,{"v":0,"d":"$0.00"}]
["VDOT20-C19-SP010","Epoxy Overlay (VDOT Item 68675)",{"v":1610,"d":"1,610"},"SY",null,{"v":0,"d":"$0.00"}]
[{"$nulls":4},"SUBTOTAL",{"$f":"+SUM(F58:F67)","v":{"v":0,"d":"$0.00"}}]
[]
[{"$nulls":4},"TOTAL (EXCLUDING PERCENTAGE ITEMS)",{"$f":"+(F9+F16+F24+F35+F42+F48+F53+F68)","v":{"v":0,"d":"$0.00"}}]
[]
["PCT","PERCENTAGE LINE ITEMS"]
["MASTER ITEM #","DESCRIPTION","QTY","UNIT","UNIT\nPRICE","TOTAL"]
["01000-C16-00010","Maintenance of Traffic (MOT)","NA","%",null,{"$f":"+E74*F70","v":{"v":0,"d":"$0.00"}}]
["01000-C16-00030","Mobilization and De-Mobilization","NA","%",null,{"$f":"+E75*F70","v":{"v":0,"d":"$0.00"}}]
["01500-SA-00200","SWPPP Administration","NA","%",null,{"$f":"+E76*F70","v":{"v":0,"d":"$0.00"}}]
[{"$nulls":4},"PERCENTAGE LINE ITEMS SUBTOTAL",{"$f":"+SUM(F74:F76)","v":{"v":0,"d":"$0.00"}}]
[]
[{"$nulls":4},"GRAND TOTAL BID PRICE",{"$f":"+F70+F77","v":{"v":0,"d":"$0.00"}}]
[]
[]
["C20","BRIDGE ITEMS"]
[null,"OPTIONAL BID ITEM Bridge Maintenance "]
["MASTER ITEM #","DESCRIPTION","QTY","UNIT","UNIT\nPRICE","TOTAL"]
["VDOT20-C20-SP001","H.E.S. Patching (Type B) (VDOT Item 68322)",10,"SY",null,{"$f":"+C85*E85","v":{"v":0,"d":"$0.00"}}]
["VDOT20-C20-SP002","Concrete Superstructure Surface Repair (VDOT Item 68600)",8,"SY",null,{"v":0,"d":"$0.00"}]
["VDOT20-C20-SP003","Concrete Surface Color Coating (VDOT Item 68190)",110,"SY",null,{"v":0,"d":"$0.00"}]
["VDOT20-C20-SP004","Expansion Joint Reconstruction (HES) (VDOT Item 68573)",155,"LF",null,{"v":0,"d":"$0.00"}]
["VDOT20-C20-SP005","Silicone Joint Sealant (1\") (VDOT Item 68409)",155,"LF",null,{"v":0,"d":"$0.00"}]
["VDOT20-C20-SP006","Embedded Galvanic Anodes (VDOT Item 68180)",44,"EA",null,{"v":0,"d":"$0.00"}]
["VDOT20-C20-SP007","Beam End Repair (VDOT Item 68580)",24,"EA",null,{"v":0,"d":"$0.00"}]
["VDOT20-C20-SP008","Concrete Superstructure Surface Repair/ Beams (VDOT Item 68600)",17,"SY",null,{"v":0,"d":"$0.00"}]
["VDOT20-C20-SP009","NS BR. Superstructure Wid./Repair Bridge Cleaning and Washing - Super Structure (VDOT Item 68910)",{"v":1334,"d":"1,334"},"SY",null,{"v":0,"d":"$0.00"}]
["VDOT20-C20-SP010","Concrete Substructure Surface Repair - Abutments and Piers (VDOT Item 69500)",60,"SY",null,{"v":0,"d":"$0.00"}]
["VDOT20-C20-SP011","Riprap (VDOT Item 69675)",30,"TON",null,{"v":0,"d":"$0.00"}]
[{"$nulls":4},"SUBTOTAL",{"$f":"+SUM(F85:F95)","v":{"v":0,"d":"$0.00"}}]
[]
[{"$nulls":4}," TOTAL (EXCLUDING PERCENTAGE ITEMS)",{"$f":"+F96","v":{"v":0,"d":"$0.00"}}]
[]
["PCT","PERCENTAGE LINE ITEMS"]
["MASTER ITEM #","DESCRIPTION","QTY","UNIT","UNIT\nPRICE","TOTAL"]
["01000-C16-00010","Maintenance of Traffic (MOT)","NA","%",null,{"$f":"+E102*F98","v":{"v":0,"d":"$0.00"}}]
["01000-C16-00030","Mobilization and De-Mobilization","NA","%",null,{"$f":"+E103*F98","v":{"v":0,"d":"$0.00"}}]
["01500-SA-00200","SWPPP Administration","NA","%",null,{"$f":"+E104*F98","v":{"v":0,"d":"$0.00"}}]
[{"$nulls":4},"PERCENTAGE LINE ITEMS SUBTOTAL",{"$f":"+SUM(F102:F104)","v":{"v":0,"d":"$0.00"}}]
[]
[{"$nulls":4},"OPTIONAL BID ITEM TOTAL :",{"$f":"+F98+F105","v":{"v":0,"d":"$0.00"}}]